bitfinex/quotes_ETHUSD_20251217
["timestamp","ask_amount","ask_price","bid_price","bid_amount"]
[1765977721069,0.19988,2928.0,2927.9,3.90751719]
[1765977722050,0.19988,2928.0,2927.9,4.35831719]
[1765977722371,0.19988,2928.0,2927.9,5.13570175]
[1765977724844,0.19988,2928.0,2927.9,0.4633]
[1765977725466,0.19988,2928.0,2927.9,3.87871719]
[1765977725661,1.14138,2928.0,2927.9,0.002]
[1765977725864,0.68538,2928.0,2927.9,0.002]
[1765977726674,0.19988,2928.0,2927.9,4.35351719]
[1765977726986,0.19988,2928.0,2927.9,5.55449283]
[1765977728256,0.19988,2928.0,2927.9,5.07969283]
[1765977728475,0.19988,2928.0,2927.9,5.55449283]
[1765977730980,0.19988,2928.0,2927.9,5.95999683]
[1765977734789,0.19988,2928.0,2927.9,5.55449283]
[1765977734992,0.19988,2928.0,2927.9,5.07969283]
[1765977735361,0.68538,2928.0,2927.9,0.002]
[1765977735558,1.14138,2928.0,2927.9,0.002]
[1765977735777,1.14138,2928.0,2927.9,3.87871719]
[1765977735778,0.19988,2928.0,2927.9,3.87871719]
[1765977736692,0.68538,2928.0,2927.9,0.002]
[1765977738764,0.19988,2928.0,2927.9,3.87871719]
[1765977739275,0.19988,2928.0,2927.9,0.4633]
[1765977739470,0.19988,2928.0,2927.9,3.87871719]
[1765977739675,0.68538,2928.0,2927.9,0.002]
[1765977740100,0.68538,2928.0,2927.9,3.41741719]
[1765977740268,0.68538,2928.0,2927.9,0.002]
[1765977741973,1.14138,2928.0,2927.9,0.002]
[1765977742293,0.68538,2928.0,2927.9,0.002]
[1765977743289,1.14138,2928.0,2927.9,0.002]
[1765977744273,1.14058,2928.0,2927.9,0.002]
[1765977745880,1.72959432,2928.0,2927.9,0.002]
[1765977748798,0.19908,2928.0,2927.9,0.4633]
[1765977748982,0.19908,2928.0,2927.9,5.14667596]
[1765977749195,0.19908,2928.0,2927.9,0.9381]
[1765977749504,1.14058,2928.0,2927.9,0.002]
[1765977750001,0.19908,2928.0,2927.9,3.87871719]
[1765977750371,0.19908,2928.0,2927.9,0.4633]
[1765977750801,0.68458,2928.0,2927.9,0.002]
[1765977752497,0.19908,2928.0,2927.9,0.4633]
[1765977754281,0.68458,2928.0,2927.9,0.002]
[1765977754506,1.13888,2928.0,2927.9,0.002]
[1765977755580,1.68188,2928.0,2927.9,0.002]
[1765977759189,6.35292885,2928.0,2927.9,0.002]
[1765977759387,6.98822173,2928.0,2927.9,0.002]
[1765977760702,0.4806,2927.1,2927.0,0.002]
[1765977762391,0.0263,2927.1,2927.0,0.002]
[1765977763200,0.543,2927.2,2927.0,0.002]
[1765977763599,0.1923,2927.3,2927.0,0.002]
[1765977763808,0.543,2927.2,2927.1,0.4731]
[1765977765291,1.035,2927.2,2927.0,3.4184101]
[1765977765912,0.543,2927.2,2927.1,0.4731]
[1765977766092,0.543,2927.2,2927.1,4.38815065]
[1765977766287,0.543,2927.4,2927.1,4.38815065]
[1765977766693,0.1923,2927.9,2927.1,8.08646275]
[1765977766897,0.1923,2927.9,2927.2,0.4987]
[1765977766898,0.543,2927.8,2927.2,0.4987]
[1765977767233,0.543,2927.8,2927.3,3.91481724]
[1765977767434,0.543,2927.8,2927.4,0.96308023]
[1765977768137,0.543,2927.8,2927.0,3.41844598]
[1765977768138,0.4955,2927.1,2927.0,0.002]
[1765977768340,5.24516862,2927.1,2927.0,0.002]
[1765977768645,5.76968548,2927.1,2927.0,0.002]
[1765977768935,0.6557,2926.8,2926.7,0.002]
[1765977769116,31.10004862,2926.8,2926.7,0.002]
[1765977769701,0.4957,2926.6,2926.5,0.002]
[1765977769905,1.0387,2926.6,2926.5,0.002]
[1765977770837,0.4957,2926.6,2926.5,0.002]
[1765977771012,1.0387,2926.6,2926.5,0.002]
[1765977771537,1.0629,2926.6,2926.5,0.002]
[1765977775743,0.5844,2926.6,2926.5,0.002]
[1765977776045,1.0629,2926.6,2926.5,0.002]
[1765977779346,0.0414,2926.6,2926.5,0.002]
[1765977779643,0.544,2926.7,2926.6,0.4984]
[1765977779943,0.544,2926.7,2926.6,0.9934]
[1765977780316,0.544,2926.7,2926.6,0.4984]
[1765977780517,0.0168,2926.6,2926.5,0.002]
[1765977780940,0.544,2926.7,2926.5,3.41905108]
[1765977781552,0.544,2926.7,2926.6,3.91533432]
[1765977781847,0.544,2926.7,2926.6,4.69828189]
[1765977782247,0.544,2926.7,2926.6,1.28134757]
[1765977782841,0.544,2926.7,2926.6,0.4984]
[1765977783152,0.544,2926.7,2926.5,0.002]
[1765977783153,1.0123,2926.7,2926.5,0.002]
[1765977783448,0.544,2926.7,2926.5,3.41905108]
[1765977784264,0.544,2926.7,2926.5,0.002]
[1765977784444,0.001,2926.7,2926.6,0.9663]
[1765977784749,0.001,2926.7,2926.6,1.63931387]
[1765977785117,0.001,2926.7,2926.6,0.9663]
[1765977786217,0.001,2926.7,2926.6,4.38323432]
[1765977789846,0.001,2926.7,2926.6,3.88533432]
[1765977790038,0.001,2926.7,2926.5,3.41905108]
[1765977790039,0.0082,2926.6,2926.5,3.41905108]
[1765977790239,0.4717,2926.7,2926.6,3.41693432]
[1765977791132,0.4717,2926.7,2926.5,0.002]
[1765977792453,0.4709,2926.7,2926.5,0.002]
[1765977792832,0.0002,2926.7,2926.6,0.4684]
[1765977793443,0.0002,2926.7,2926.6,3.88533432]
[1765977793647,0.0002,2926.7,2926.6,4.61577175]
[1765977795146,0.0002,2926.7,2926.6,5.11367175]
[1765977795346,0.0002,2926.7,2926.6,4.61577175]
[1765977795764,0.0002,2926.7,2926.6,4.61175198]
[1765977795943,0.0002,2926.7,2926.6,4.64592132]
[1765977796272,0.0002,2926.7,2926.6,19.06595832]
[1765977796564,0.0002,2926.7,2926.6,17.73448898]
[1765977797265,0.0002,2926.7,2926.6,13.10643598]
[1765977797769,0.0002,2926.7,2926.6,13.14054879]
[1765977798643,0.0002,2926.7,2926.6,13.68354879]
[1765977800576,0.0002,2926.7,2926.6,14.35724879]
[1765977810771,0.0002,2926.7,2926.6,11.85434798]
[1765977811149,0.0002,2926.7,2926.6,11.99062798]
[1765977811362,0.0002,2926.7,2926.6,18.00435905]
[1765977812146,0.0002,2926.7,2926.6,5.69653598]
[1765977812376,0.0002,2926.7,2926.6,11.71026705]
[1765977812785,0.0002,2926.7,2926.6,4.82665175]
[1765977812990,0.0002,2926.7,2926.6,4.09621432]
[1765977813148,0.9511,2926.7,2926.6,0.67928]
[1765977813347,0.4709,2926.7,2926.6,0.67928]
[1765977813650,0.4882,2926.6,2926.5,0.002]
[1765977815771,0.008,2926.6,2926.5,0.002]
[1765977816181,0.0072,2926.6,2926.5,0.002]
[1765977816370,0.0002,2926.7,2926.5,0.4602]
[1765977816748,0.0002,2926.7,2926.6,3.41693432]
[1765977816952,0.4554,2926.7,2926.6,3.41693432]
[1765977817463,0.4554,2926.7,2926.5,3.41901772]
[1765977818154,0.9351,2926.6,2926.5,0.03617051]
[1765977818487,0.9351,2926.6,2926.5,0.002]
[1765977819651,0.4552,2926.6,2926.5,0.002]
[1765977820386,0.0002,2926.7,2926.5,0.939]
[1765977820886,0.0002,2926.7,2926.5,0.4602]
[1765977821285,0.4552,2926.6,2926.5,0.002]
[1765977821484,0.001,2926.6,2926.5,0.002]
[1765977821856,0.001,2926.6,2926.5,3.87725108]
[1765977822056,0.001,2926.6,2926.5,4.35605108]
[1765977822385,0.001,2926.6,2926.5,8.56666407]
[1765977822683,0.001,2926.6,2926.5,6.45538843]
[1765977826488,0.001,2926.6,2926.5,5.51838843]
[1765977826692,0.001,2926.6,2926.5,5.97658843]
[1765977827097,0.001,2926.6,2926.5,6.45538843]
[1765977828694,0.001,2926.6,2926.5,5.97658843]
[1765977828894,0.001,2926.6,2926.5,4.35715108]
[1765977830501,0.001,2926.6,2926.5,4.83595108]
[1765977836299,0.001,2926.6,2926.5,5.27562559]
[1765977836614,0.001,2926.6,2926.5,35.24145508]
[1765977837172,0.001,2926.6,2926.5,35.70583531]
[1765977837402,0.001,2926.6,2926.5,39.11711642]
[1765977839811,0.001,2926.6,2926.5,43.32772941]
[1765977840432,0.0002,2926.6,2926.5,42.39072941]
[1765977840721,0.0002,2926.6,2926.5,39.15571642]
[1765977841079,0.0002,2926.6,2926.5,43.36632941]
[1765977842050,0.0002,2926.6,2926.5,47.5769424]
[1765977842201,0.0002,2926.6,2926.5,32.4364174]
[1765977842602,0.0002,2926.6,2926.5,40.8188774]
[1765977843136,0.0002,2926.6,2926.5,40.5397344]
[1765977843722,0.0002,2926.7,2926.6,30.86988423]
[1765977843910,0.0002,2926.7,2926.6,34.31527815]
[1765977844729,0.0002,2926.7,2926.6,37.73221247]
[1765977846000,0.0002,2926.7,2926.6,36.03766147]
[1765977846838,0.0002,2926.7,2926.6,19.43193446]
[1765977847042,0.0002,2926.7,2926.6,19.48591546]
[1765977847207,0.0002,2926.7,2926.6,20.02991546]
[1765977847403,0.0002,2926.7,2926.6,19.99580265]
[1765977847616,0.0002,2926.7,2926.6,20.02991546]
[1765977847949,0.0002,2926.7,2926.6,24.17718546]
[1765977848100,0.0002,2926.7,2926.6,20.57118546]
[1765977849043,0.0002,2926.7,2926.6,28.50561146]
[1765977849255,0.0002,2926.7,2926.6,28.17273446]
[1765977849811,0.0002,2926.7,2926.6,25.88605146]
[1765977850011,0.0002,2926.7,2926.6,25.89263346]
[1765977851035,0.0002,2926.7,2926.6,28.22096546]
[1765977851240,0.0002,2926.7,2926.6,25.93406965]
[1765977851553,0.0002,2926.7,2926.6,30.55018664]
[1765977851953,0.0002,2926.7,2926.6,34.83543064]
[1765977852323,0.0002,2926.7,2926.6,34.56379764]
[1765977852547,0.0002,2926.7,2926.6,33.97279664]
[1765977853125,0.0002,2926.7,2926.6,34.89762664]
[1765977853350,0.0002,2926.7,2926.6,32.98481164]
[1765977854257,0.0002,2926.7,2926.6,34.35130764]
[1765977855036,0.0002,2926.7,2926.6,35.70160464]
[1765977855555,0.0002,2926.7,2926.6,34.93850764]
[1765977855768,0.001,2927.8,2927.7,0.4707]
[1765977855962,0.001,2927.8,2927.7,5.57851699]
[1765977856165,0.001,2927.8,2927.7,6.13636869]
[1765977856330,0.001,2927.8,2927.7,6.33544869]
[1765977857242,0.001,2927.8,2927.7,9.7510992]
[1765977857967,0.001,2927.8,2927.7,10.21547943]
[1765977862069,0.001,2927.8,2927.7,6.00486644]
[1765977862372,0.001,2927.8,2927.7,4.08543051]
[1765977864374,0.0002,2927.8,2927.7,4.08543051]
[1765977864878,0.0002,2927.8,2927.7,4.57713051]
[1765977865558,0.0002,2927.8,2927.7,5.48117124]
[1765977865943,0.0002,2927.8,2927.7,5.44701474]
[1765977866148,0.0002,2927.8,2927.7,6.80865345]
[1765977870582,0.0002,2927.8,2927.7,4.08543051]
[1765977871483,0.0002,2927.8,2927.7,4.57713051]
[1765977872283,0.0002,2927.8,2927.7,4.37805051]
[1765977873184,0.0002,2927.8,2927.7,8.9902978]
[1765977873559,0.0002,2927.8,2927.7,4.37805051]
[1765977873867,0.0002,2927.8,2927.7,3.88635051]
[1765977874047,0.0002,2927.8,2927.7,4.37805051]
[1765977874550,0.0002,2927.8,2927.7,3.41565051]
[1765977874551,0.4605,2927.8,2927.7,3.41565051]
[1765977874766,0.0097,2927.7,2926.9,4.20674329]
[1765977874971,0.951,2927.6,2927.1,0.4605]
[1765977875185,0.951,2927.6,2927.1,0.92488023]
[1765977875363,0.951,2927.6,2927.1,1.41498023]
[1765977875684,0.0002,2927.8,2927.5,0.459]
[1765977876256,0.4603,2927.6,2927.2,0.4901]
[1765977878089,0.4603,2927.6,2927.3,6.83223448]
[1765977880072,0.4603,2927.6,2927.1,0.95448023]
[1765977880307,0.4603,2927.6,2927.2,6.83246788]
[1765977880706,0.4603,2927.6,2927.2,7.32256788]
[1765977881226,0.0002,2927.8,2927.5,0.459]
[1765977881381,0.0002,2927.8,2927.5,0.9491]
[1765977881877,0.0002,2927.8,2927.5,0.459]
[1765977883117,0.0002,2927.8,2927.6,6.83153436]
[1765977884614,0.4603,2927.7,2927.6,3.41576718]
[1765977884910,0.4603,2927.7,2927.2,4.73980001]
[1765977884911,0.4603,2927.3,2927.2,0.4954]
[1765977885209,0.9555,2927.2,2927.1,3.41628049]
[1765977885982,0.4603,2927.2,2927.1,3.41628049]
[1765977886180,0.0002,2927.8,2927.3,3.41611724]
[1765977886490,0.4954,2927.8,2927.3,3.41611724]
[1765977887079,0.4954,2927.8,2927.2,6.83246788]
[1765977888216,0.4946,2927.8,2927.2,6.83246788]
[1765977889215,0.4946,2927.8,2927.3,0.002]
[1765977889511,0.4956,2927.8,2927.3,0.002]
[1765977893180,0.4654,2927.4,2927.3,0.002]
[1765977893610,0.9395,2927.4,2927.3,0.002]
[1765977894211,0.4654,2927.4,2927.3,0.002]
[1765977894386,0.4741,2927.6,2927.3,0.002]
[1765977894997,0.001,2927.8,2927.5,0.4606]
[1765977895922,0.001,2927.8,2927.3,0.69618]
[1765977895923,0.4742,2927.4,2927.3,3.61719724]
[1765977896219,0.4751,2927.8,2927.3,7.32933448]
[1765977897123,0.4751,2927.8,2927.3,3.41811724]
[1765977897702,0.4751,2927.8,2927.3,6.83423448]
[1765977898420,0.4856,2927.4,2927.3,0.002]
[1765977898622,0.9597,2927.4,2927.3,0.002]
[1765977901895,0.4856,2927.4,2927.3,0.002]
[1765977902834,0.9597,2927.4,2927.3,0.002]
[1765977906946,0.542,2927.6,2927.3,0.002]
[1765977907146,0.9274,2927.4,2927.3,0.002]
[1765977912361,0.4657,2927.4,2927.3,0.002]
[1765977912737,0.4665,2927.4,2927.3,0.002]
[1765977913456,0.542,2927.6,2927.3,0.4689]
[1765977913628,0.542,2927.6,2927.5,0.4669]
[1765977913828,0.46538023,2927.8,2927.5,0.4669]
[1765977913829,0.001,2927.8,2927.5,0.9475]
[1765977914260,0.001,2927.8,2927.7,0.4669]
[1765977914936,0.001,2927.8,2927.7,3.88255051]
[1765977915959,0.001,2927.8,2927.7,4.66044204]
[1765977918069,0.4675,2927.8,2927.7,0.77789153]
[1765977918367,0.001,2927.8,2927.4,0.4806]
[1765977919372,0.001,2927.8,2927.7,0.4669]
[1765977919749,0.001,2927.8,2927.7,0.9475]
[1765977921146,0.001,2927.8,2927.7,0.4669]
[1765977921350,0.001,2927.8,2927.7,4.66047728]
[1765977921860,0.001,2927.8,2927.7,9.75523581]
[1765977924670,0.001,2927.8,2927.7,5.54658128]
[1765977924874,0.001,2927.8,2927.7,5.06598128]
[1765977925042,0.001,2927.8,2927.7,5.26506128]
[1765977925240,0.001,2927.8,2927.7,5.74566128]
[1765977925896,0.001,2927.8,2927.7,9.95431581]
[1765977926244,0.001,2927.8,2927.7,28.89212681]
[1765977927077,0.08859794,2928.0,2927.8,0.4669]
[1765977927277,0.001,2928.6,2928.3,16.211316]
[1765977927458,0.001,2928.6,2928.3,19.81470653]
[1765977927836,0.001,2928.6,2928.3,19.37561653]
[1765977928041,0.001,2928.6,2928.3,9.21014435]
[1765977928270,0.001,2928.6,2928.3,11.01466469]
[1765977929337,0.001,2928.6,2928.3,10.47266469]
[1765977931054,0.001,2928.6,2928.3,37.49691369]
[1765977931450,0.001,2928.6,2928.3,39.00453728]
[1765977932455,0.001,2928.6,2928.3,28.03427628]
[1765977933183,0.001,2928.6,2928.3,11.98028828]
[1765977933347,0.001,2928.6,2928.3,6.26401016]
[1765977935654,0.001,2928.6,2928.3,5.85850616]
[1765977935869,0.001,2928.6,2928.3,5.72167099]
[1765977936328,0.0002,2928.4,2928.3,5.73207099]
[1765977937923,0.0002,2928.4,2928.3,6.17172449]
[1765977939624,0.0002,2928.4,2928.3,6.13757499]
[1765977940341,0.0002,2928.4,2928.3,6.17172449]
[1765977940515,0.0002,2928.4,2928.3,6.13757499]
[1765977940845,0.001,2930.2,2929.5,0.4773]
[1765977941010,0.001,2930.2,2930.1,6.60949822]
[1765977941215,0.001,2930.2,2930.1,10.42785502]
[1765977941410,0.001,2930.2,2930.1,11.51470017]
[1765977941731,0.001,2930.2,2930.1,14.03316242]
[1765977941937,0.001,2930.2,2930.1,12.94631727]
[1765977942839,0.001,2930.2,2930.1,43.4106975]
[1765977943040,0.001,2930.2,2930.1,16.7568205]
[1765977943806,0.001,2930.2,2930.1,13.4106975]
[1765977944042,0.001,2930.2,2930.1,19.6561585]
[1765977944339,0.001,2930.2,2930.1,20.70776577]
[1765977944703,0.001,2930.2,2930.1,21.56317085]
[1765977945041,0.001,2930.2,2930.1,19.6561585]
[1765977947007,0.001,2930.2,2930.1,27.2054865]
[1765977948046,0.001,2930.2,2930.1,27.1993525]
[1765977948941,0.001,2930.2,2930.1,13.4106975]
[1765977949241,0.001,2930.2,2930.1,27.1670915]
[1765977949440,0.001,2930.2,2930.1,7.94589928]
[1765977950006,0.001,2930.2,2930.1,13.4106975]
[1765977950639,0.001,2930.2,2930.1,7.48151905]
[1765977951318,0.001,2930.2,2930.1,5.58324817]
[1765977951523,0.001,2930.2,2930.1,3.8901528]
[1765977951723,0.0045,2930.1,2929.9,4.43889494]
[1765977951908,0.0045,2930.1,2930.0,3.41296928]
[1765977952420,0.001,2930.2,2930.0,6.82593856]
[1765977952802,0.4535,2930.2,2930.1,0.46438023]
[1765977953004,0.001,2930.2,2930.1,0.93248023]
[1765977954618,0.001,2930.2,2930.1,4.34533303]
[1765977955725,0.001,2930.2,2930.1,5.02163303]
[1765977957010,0.001,2930.2,2930.1,4.5572528]
[1765977957412,0.001,2930.2,2930.1,4.0623528]
[1765977957646,0.9341,2930.2,2930.1,3.4128528]
[1765977957950,0.001,2930.2,2930.1,4.5572528]
[1765977958147,0.001,2930.2,2930.1,5.90020776]
[1765977959346,0.001,2930.2,2930.1,11.75050151]
[1765977959569,0.001,2930.2,2930.1,11.71637299]
[1765977959729,0.001,2930.2,2930.1,11.7504858]
[1765977959934,0.001,2930.2,2930.1,12.77612857]
[1765977960115,0.0002,2930.2,2930.1,11.81312857]
[1765977960316,0.0002,2930.2,2930.1,12.77612857]
[1765977961914,0.0002,2930.2,2930.1,12.74201576]
[1765977962119,0.0002,2930.2,2930.1,13.25506228]
[1765977963936,0.0002,2930.2,2930.1,7.79573476]
[1765977965050,0.0002,2930.2,2930.1,3.8809528]
[1765977965254,0.0002,2930.2,2930.1,4.34533303]
[1765977965826,0.4707,2930.2,2930.1,3.87723303]
[1765977966836,0.4707,2930.2,2930.1,3.4128528]
[1765977967234,0.4707,2930.2,2930.0,0.46438023]
[1765977968059,0.0002,2930.2,2930.0,0.46438023]
[1765977969273,0.0002,2930.2,2930.1,3.4128528]
[1765977972368,0.0002,2930.2,2929.9,6.82617154]
[1765977972827,0.0002,2930.2,2929.8,3.41320226]
[1765977973657,0.9316,2930.1,2930.0,0.002]
[1765977974025,0.4705,2930.1,2930.0,0.002]
[1765977974748,0.9316,2930.1,2930.0,0.002]
[1765977975462,0.4705,2930.1,2930.0,0.002]
[1765977975626,0.9316,2930.1,2930.0,0.002]
[1765977984264,0.9308,2930.1,2930.0,0.002]
[1765977985131,3.56507123,2930.1,2930.0,0.002]
[1765977985331,1.75170735,2930.1,2930.0,0.002]
[1765977985629,1.39518023,2930.1,2930.0,0.002]
[1765977987958,1.39518023,2930.1,2929.5,0.002]
[1765977987959,0.4773,2929.6,2929.5,0.002]
[1765977988357,0.46438023,2930.1,2929.5,0.457]
[1765977988556,0.7688,2929.8,2929.5,4.20416685]
[1765977989051,0.6478,2929.6,2929.5,0.002]
[1765977990238,0.0002,2930.2,2929.5,5.07958354]
[1765977990438,0.0002,2930.2,2929.5,5.13536685]
[1765977990667,0.0002,2930.2,2929.5,4.65916685]
[1765977990841,0.4705,2929.7,2929.6,0.002]
[1765977991041,0.9316,2929.7,2929.6,0.002]
[1765977991569,5.59814708,2929.7,2929.6,0.002]
[1765977991740,6.17651179,2929.7,2929.6,0.002]
[1765977993078,1.97434494,2929.7,2929.6,0.002]
[1765977993659,1.39598023,2929.7,2929.6,0.002]
[1765978006865,0.4828,2929.3,2928.9,3.41625108]
[1765978007493,0.4828,2929.3,2928.9,0.002]
[1765978008180,0.482,2929.3,2928.9,0.002]
[1765978011115,0.4698,2929.0,2928.9,0.002]
[1765978011814,0.482,2929.3,2928.9,0.002]
[1765978012914,0.4546,2929.0,2928.9,0.002]
[1765978013314,0.497,2929.2,2928.9,0.002]
[1765978014016,0.4546,2929.0,2928.9,0.002]
[1765978017223,0.497,2929.2,2928.9,0.002]
[1765978017434,0.4546,2929.0,2928.9,0.002]
[1765978017809,0.497,2929.2,2928.9,0.002]
[1765978018507,0.4546,2929.0,2928.9,0.002]
[1765978019428,0.001,2929.3,2928.9,0.4912]
[1765978019429,0.5002,2929.3,2928.9,0.4912]
[1765978020290,0.5002,2929.3,2928.9,0.9506]
[1765978020493,0.001,2929.3,2929.0,3.41413451]
[1765978021798,0.5002,2929.3,2929.0,3.41413451]
[1765978023833,0.001,2929.3,2929.0,3.87353451]
[1765978025934,0.001,2929.3,2929.0,0.4594]
[1765978026134,0.4709,2929.3,2929.0,3.41412966]
[1765978026329,0.4555,2929.1,2929.0,3.41412966]
[1765978027103,0.0308,2929.0,2928.9,3.41619229]
[1765978027615,0.4555,2929.1,2929.0,3.4140696]
[1765978028331,0.4555,2929.1,2928.9,0.002]
[1765978028537,0.4709,2929.3,2928.9,0.002]
[1765978028738,0.4709,2929.3,2928.9,0.5011]
[1765978029039,0.001,2929.3,2928.9,0.5011]
[1765978029237,0.4709,2929.3,2928.9,0.5011]
[1765978030150,0.4709,2929.3,2928.9,0.002]
[1765978031519,0.001,2929.3,2929.2,0.4509]
[1765978031749,0.001,2929.3,2929.2,0.95]
[1765978032213,0.0002,2929.3,2929.2,0.53323901]
[1765978032417,0.0002,2929.3,2929.2,4.85512192]
[1765978032614,0.0002,2929.3,2929.2,9.05878811]
[1765978034547,0.0002,2929.3,2929.2,4.85512192]
[1765978034753,0.0002,2929.3,2929.2,4.35602192]
[1765978034937,0.4557,2929.3,2929.2,3.4139014]
[1765978035751,0.4555,2929.0,2928.9,3.41625108]
[1765978036433,0.4555,2929.0,2928.9,0.002]
[1765978036634,0.9254,2929.0,2928.9,0.002]
[1765978037446,0.4555,2929.0,2928.9,0.002]
[1765978038730,0.9254,2929.0,2928.9,0.002]
[1765978040057,0.4555,2929.0,2928.9,0.002]
[1765978041335,0.9254,2929.0,2928.9,0.002]
[1765978042029,0.4701,2929.3,2928.9,0.002]
[1765978042526,0.0002,2929.3,2928.9,0.002]
[1765978042931,0.0002,2929.3,2928.9,1.10565737]
[1765978043131,0.4555,2929.0,2928.9,1.10565737]
[1765978045244,0.4555,2929.0,2928.9,4.51990845]
[1765978047867,0.4699,2929.2,2928.9,4.51990845]
[1765978048070,0.4699,2929.2,2928.9,3.41625108]
[1765978048362,0.4699,2929.2,2928.9,6.83050216]
[1765978048666,0.0002,2929.3,2929.0,0.4991]
[1765978049250,0.0002,2929.3,2929.1,3.41401795]
[1765978051533,0.0002,2929.3,2928.9,6.83050216]
[1765978051736,0.0002,2929.3,2929.0,0.73316022]
[1765978053162,0.9254,2929.0,2928.9,0.002]
[1765978054741,0.0002,2929.3,2928.9,0.002]
[1765978054946,0.9496,2929.0,2928.9,0.002]
[1765978056178,0.9488,2929.0,2928.9,0.002]
[1765978060682,0.46438023,2929.7,2928.9,0.002]
[1765978060683,4.20397604,2929.7,2929.6,0.4744]
[1765978060978,5.25937364,2929.7,2929.0,0.4698]
[1765978061181,5.25937364,2929.7,2929.6,0.4744]
[1765978061343,5.25937364,2929.7,2929.6,0.9442]
[1765978062578,4.75937364,2929.7,2928.9,0.002]
[1765978062788,0.46438023,2929.6,2928.9,0.002]
[1765978062949,0.52237539,2929.5,2928.9,0.002]
[1765978064385,0.001,2929.3,2928.9,0.002]
[1765978066350,0.4982,2929.3,2928.9,0.002]
[1765978066746,0.4569,2929.0,2928.9,0.002]
[1765978066951,0.001,2929.3,2928.9,4.20597604]
[1765978067247,0.001,2929.3,2928.9,0.84319521]
[1765978068482,0.4982,2929.3,2928.9,0.002]
[1765978071193,0.9541,2929.0,2928.9,0.002]
[1765978072871,5.15807604,2929.0,2928.9,0.002]
[1765978073083,0.9541,2929.0,2928.9,0.002]
[1765978074573,5.15807604,2929.0,2928.9,0.002]
[1765978074779,6.13826387,2929.0,2928.9,0.002]
[1765978076111,1.61348023,2928.9,2928.8,0.002]
[1765978078773,0.9541,2928.6,2928.5,0.002]
[1765978079004,5.15807604,2928.6,2928.5,0.002]
[1765978079187,16.69223991,2928.6,2928.5,0.002]
[1765978079385,21.18104291,2928.6,2928.5,0.002]
[1765978079705,1.1491,2927.8,2927.7,0.002]
[1765978079905,1.41848023,2927.7,2927.4,0.002]
[1765978080075,0.9541,2927.3,2927.2,0.002]
[1765978080275,5.15727604,2927.3,2927.2,0.002]
[1765978080480,1.1491,2926.7,2926.6,0.002]
[1765978081070,0.6519,2926.7,2926.6,3.41893432]
[1765978081276,0.6922,2926.9,2926.6,6.83586864]
[1765978081477,0.4569,2926.7,2926.6,3.41893432]
[1765978081701,0.9542,2926.7,2926.6,7.62291036]
[1765978081903,0.9542,2926.7,2926.6,8.72710601]
[1765978082111,0.4973,2927.7,2926.8,0.0151]
[1765978082275,0.4973,2927.7,2926.9,4.20397604]
[1765978083413,0.1944,2928.0,2927.5,4.20397604]
[1765978083711,0.4973,2928.7,2927.6,0.4203976]
[1765978083874,0.195,2928.9,2927.9,4.20397604]
[1765978083875,0.4973,2928.6,2927.9,4.20397604]
[1765978084506,0.4973,2928.6,2928.1,4.20397604]
[1765978084711,0.4973,2928.6,2928.2,0.4203976]
[1765978085078,0.195,2928.9,2928.3,4.20397604]
[1765978085307,0.195,2928.9,2928.3,6.8299013]
[1765978085716,0.6712,2928.9,2928.3,6.8299013]
[1765978085882,0.4762,2928.8,2928.3,6.8299013]
[1765978086202,0.4762,2928.8,2928.4,0.72502989]
[1765978086702,0.195,2928.9,2928.4,0.72502989]
[1765978086879,0.6712,2928.9,2928.4,0.72502989]
[1765978087080,0.4762,2928.8,2928.5,3.41471743]
[1765978088291,0.195,2928.9,2928.5,3.41471743]
[1765978088587,0.195,2928.9,2928.6,0.75544899]
[1765978088588,0.6712,2928.9,2928.6,0.75544899]
[1765978088790,0.195,2928.9,2928.6,0.75544899]
[1765978089421,0.195,2928.9,2928.6,4.1699798]
[1765978089588,0.001,2929.0,2928.5,3.41466559]
[1765978089797,0.4772,2929.0,2928.5,3.41467384]
[1765978089994,0.4762,2928.8,2928.5,3.41467384]
[1765978090199,0.938,2928.6,2928.5,3.41467384]
[1765978091192,0.6726,2928.9,2928.3,3.41495065]
[1765978091505,0.4762,2928.8,2928.4,4.58751087]
[1765978092082,0.1964,2928.9,2928.6,4.20397604]
[1765978092083,0.938,2928.7,2928.6,4.20397604]
[1765978093486,0.938,2928.7,2928.6,7.61857687]
[1765978094212,0.938,2928.7,2928.6,3.41460083]
[1765978094422,0.938,2928.7,2928.6,4.55648318]
[1765978096290,0.001,2929.0,2928.6,19.79363692]
[1765978096597,0.001,2929.0,2928.6,7.97108401]
[1765978096801,0.938,2928.7,2928.6,4.55648318]
[1765978097118,0.4618,2928.7,2928.6,4.55648318]
[1765978097292,0.1964,2928.9,2928.6,12.17423839]
[1765978097491,0.4618,2928.9,2928.8,4.20315438]
[1765978097784,0.001,2929.0,2928.8,4.20315438]
[1765978098211,0.001,2929.0,2928.9,0.420604]
[1765978098626,0.001,2929.0,2928.9,3.83485508]
[1765978099120,0.001,2929.0,2928.9,3.81975508]
[1765978099321,0.001,2929.0,2928.9,5.1228032]
[1765978099994,0.001,2929.0,2928.9,9.37520009]
[1765978100189,0.001,2929.0,2928.9,9.39027039]
[1765978101034,0.001,2929.0,2928.9,37.73589139]
[1765978101492,0.001,2929.0,2928.9,33.53273701]
[1765978101817,0.001,2929.0,2928.9,37.73589139]
[1765978102321,0.001,2929.0,2928.9,13.93858701]